bitfinex/quotes_ETHUSD_20240711
["timestamp","ask_amount","ask_price","bid_price","bid_amount"]
[1720660814879,0.03512212,3100.1,3099.3,3.55]
[1720660815308,2.3652,3100.2,3099.3,3.55]
[1720660815526,0.03539481,3100.1,3099.3,6.7765]
[1720660815673,2.3652,3100.2,3099.3,6.7765]
[1720660815871,0.03539481,3100.1,3099.3,3.0]
[1720660816116,2.3652,3100.2,3099.4,0.4895]
[1720660816411,0.03539481,3100.1,3099.5,0.06451443]
[1720660816595,0.03539481,3100.1,3099.3,3.22653]
[1720660816773,2.3652,3100.2,3099.4,0.06451445]
[1720660817114,0.03539481,3100.1,3099.4,0.06451445]
[1720660817317,2.2589,3100.5,3099.6,5.1212]
[1720660817476,0.03541652,3100.4,3099.7,1.41250696]
[1720660817685,0.03541652,3100.4,3099.8,0.06450698]
[1720660817988,0.03541652,3100.4,3099.7,4.348]
[1720660818183,0.03541652,3100.4,3099.8,0.06450697]
[1720660818401,0.03541652,3100.4,3099.9,0.4412507]
[1720660819417,0.03541652,3100.4,3099.7,4.348]
[1720660819789,2.301,3100.3,3099.7,3.0]
[1720660819980,2.301,3100.3,3099.1,1.293426]
[1720660820212,2.301,3100.3,3098.9,7.4]
[1720660820213,2.38987699,3100.2,3098.9,7.4]
[1720660820716,2.3546,3100.0,3098.9,7.4]
[1720660820873,2.37045836,3099.9,3098.9,7.4]
[1720660821308,2.37045836,3099.9,3098.6,2.49685602]
[1720660821531,2.3353,3099.7,3098.2,5.12262]
[1720660821825,0.03504256,3099.6,3098.2,5.12262]
[1720660822311,2.3353,3099.7,3098.2,5.12262]
[1720660822485,0.0350233,3099.6,3098.3,0.55]
[1720660824378,2.4812,3099.5,3098.2,1.895]
[1720660824578,2.4812,3099.5,3098.3,0.1895]
[1720660824999,0.03489623,3099.4,3098.3,0.1895]
[1720660825521,0.03489623,3099.4,3098.4,0.06453426]
[1720660825924,2.4812,3099.5,3098.4,0.06453426]
[1720660826131,0.03461487,3099.4,3098.3,3.1895]
[1720660826286,2.4812,3099.5,3098.4,0.50845]
[1720660826630,0.03462354,3099.4,3098.3,3.1895]
[1720660826800,0.03462354,3099.4,3098.3,0.1895]
[1720660827133,2.4812,3099.5,3098.3,0.1895]
[1720660827341,0.03462354,3099.4,3098.3,0.1895]
[1720660827485,2.4812,3099.5,3098.3,0.1895]
[1720660827713,0.03462126,3099.4,3098.4,0.831217]
[1720660827892,2.4812,3099.5,3098.4,0.831217]
[1720660828115,0.3725489,3099.4,3098.4,0.831217]
[1720660828424,0.33759769,3099.4,3098.4,0.831217]
[1720660829489,0.03457835,3099.3,3098.4,0.831217]
[1720660829690,0.33759769,3099.4,3098.4,0.831217]
[1720660829891,0.03457835,3099.3,3098.4,0.831217]
[1720660830199,0.33759769,3099.4,3098.4,0.831217]
[1720660830619,0.03492269,3099.3,3098.4,0.831217]
[1720660830930,2.4756,3099.2,3098.2,4.895]
[1720660831143,2.4756,3099.2,3098.0,3.0]
[1720660831293,2.37370651,3099.1,3097.8,1.895]
[1720660831639,2.3388,3099.1,3097.8,1.895]
[1720660831793,2.3388,3099.1,3097.9,0.1895]
[1720660831987,0.03445789,3099.0,3097.9,0.1895]
[1720660832296,0.07530408,3099.0,3098.0,0.06454557]
[1720660836830,0.07530408,3099.0,3098.2,1.895]
[1720660837034,0.07530408,3099.0,3098.3,0.06454157]
[1720660837239,0.07530408,3099.0,3098.3,0.58327273]
[1720660837699,0.07530408,3099.0,3098.3,0.51873116]
[1720660839114,2.4856,3098.9,3098.3,0.51873116]
[1720660839352,2.4856,3098.9,3097.9,3.1895]
[1720660839353,0.07509638,3098.8,3097.9,3.1895]
[1720660839643,2.4856,3098.7,3097.8,1.895]
[1720660840432,2.4856,3098.7,3097.8,1.95954951]
[1720660840743,2.4856,3098.7,3097.8,1.895]
[1720660840941,2.4856,3098.7,3097.9,0.4895]
[1720660847665,2.4856,3098.7,3098.0,0.06454639]
[1720660848161,2.4856,3098.7,3098.0,6.29241639]
[1720660848523,2.4856,3098.7,3098.1,3.22777]
[1720660848722,2.4856,3098.7,3098.6,0.789]
[1720660850369,5.83959906,3099.4,3098.6,0.789]
[1720660850370,2.431,3099.0,3098.6,0.789]
[1720660850572,2.431,3099.0,3098.3,3.22749]
[1720660850573,2.431,3099.0,3098.9,0.789]
[1720660851632,2.431,3099.0,3098.5,0.789]
[1720660851855,2.431,3099.0,3098.3,0.789]
[1720660853733,1.11828416,3098.9,3098.3,0.789]
[1720660853969,2.4454,3098.8,3098.3,0.789]
[1720660854772,2.4454,3098.8,3097.9,3.4895]
[1720660855079,2.4454,3098.8,3098.0,0.671759]
[1720660855486,1.1183398,3098.7,3097.3,3.22854]
[1720660855790,2.4995,3098.5,3097.2,5.12371]
[1720660855949,2.4995,3098.5,3097.2,8.35234]
[1720660855950,1.1183398,3098.4,3097.2,8.35234]
[1720660856272,2.4995,3098.5,3097.3,3.29315706]
[1720660856576,0.07385364,3098.4,3097.4,0.84167871]
[1720660856778,0.07385364,3098.4,3097.5,0.06455405]
[1720660856929,2.4995,3098.5,3097.6,5.12329]
[1720660857128,2.4995,3098.5,3097.6,5.67329]
[1720660858428,2.4995,3098.5,3097.7,3.22819]
[1720660858688,2.4995,3098.5,3097.8,0.567319]
[1720660859242,2.4995,3098.5,3097.6,5.6733]
[1720660859475,2.4995,3098.5,3097.7,3.22818]
[1720660859772,2.4995,3098.5,3097.8,0.06454726]
[1720660860746,2.4995,3098.5,3097.7,3.22818]
[1720660860948,2.4995,3098.5,3097.6,2.445]
[1720660861147,2.4995,3098.5,3097.7,0.795013]
[1720660863675,2.4995,3098.5,3097.4,2.52748715]
[1720660863878,2.4583,3098.3,3097.2,3.58095244]
[1720660864082,2.4583,3098.3,3097.2,1.895]
[1720660864297,2.36743886,3098.2,3097.2,1.895]
[1720660865267,2.2934,3098.2,3097.3,3.5497614]
[1720660865475,2.2934,3098.2,3097.4,3.4851995]
[1720660865671,2.2934,3098.2,3097.5,3.22945433]
[1720660865913,2.2934,3098.2,3097.6,1.12389295]
[1720660866127,2.2934,3098.2,3097.7,0.06455609]
[1720660866682,0.07356333,3098.1,3097.4,0.67527742]
[1720660866882,0.07356333,3098.1,3097.5,2.80976089]
[1720660867082,2.2934,3098.2,3097.6,0.28097609]
[1720660867321,0.07346942,3098.0,3097.4,1.68590423]
[1720660867617,2.2934,3098.2,3097.5,1.18849273]
[1720660867774,2.2934,3098.2,3097.3,0.67527742]
[1720660867977,2.2934,3098.2,3097.4,1.12393087]
[1720660868201,2.2934,3098.2,3097.2,5.79899742]
[1720660868406,2.2934,3098.2,3097.3,4.04109851]
[1720660868608,2.2934,3098.2,3097.4,1.12396286]
[1720660868830,2.2934,3098.2,3097.3,1.23119136]
[1720660869157,2.2934,3098.2,3097.4,1.12396734]
[1720660869289,2.2934,3098.2,3097.6,5.12321]
[1720660869494,2.2934,3098.2,3097.7,7.10003601]
[1720660869688,0.07378517,3098.1,3097.8,1.123904]
[1720660869895,2.2934,3098.2,3097.7,1.062321]
[1720660870333,2.2934,3098.2,3097.8,1.12380651]
[1720660870550,2.2934,3098.2,3097.7,1.062321]
[1720660870843,2.4247,3098.7,3097.8,3.10519713]
[1720660871048,2.4247,3098.7,3097.8,0.2957321]
[1720660871249,3.0,3098.8,3097.8,0.2957321]
[1720660871250,0.07360109,3098.6,3097.8,0.2957321]
[1720660871541,2.2711,3098.5,3097.6,1.895]
[1720660871741,2.2711,3098.5,3097.7,1.12386533]
[1720660872046,2.2711,3098.5,3097.6,1.895]
[1720660872047,0.07354584,3098.4,3097.6,1.895]
[1720660873050,0.07354584,3098.4,3097.7,0.06455557]
[1720660873712,0.07354584,3098.4,3097.6,1.895]
[1720660873908,0.07354584,3098.4,3097.7,1.38087682]
[1720660874151,0.07354584,3098.4,3097.7,0.25702774]
[1720660875216,0.07354584,3098.4,3097.8,0.06455529]
[1720660875429,0.07354584,3098.4,3097.7,0.25702774]
[1720660875973,0.07354584,3098.4,3097.8,0.06455528]
[1720660876134,0.07354584,3098.4,3097.8,0.28621358]
[1720660876533,0.07354584,3098.4,3097.9,1.12380556]
[1720660876769,0.07354584,3098.4,3098.0,1.12376571]
[1720660876933,2.2711,3098.5,3097.8,0.961491]
[1720660877274,0.07392043,3098.4,3097.9,2.80928255]
[1720660877567,2.2711,3098.5,3098.0,1.49433485]
[1720660877770,0.07392043,3098.4,3098.0,0.37062183]
[1720660877956,2.2711,3098.5,3097.8,0.89693572]
[1720660878160,0.07389473,3098.4,3097.9,2.80932023]
[1720660878469,2.2711,3098.5,3098.0,0.06454703]
[1720660878681,2.2711,3098.5,3098.1,2.80925893]
[1720660878831,0.0736849,3098.4,3098.2,1.12367403]
[1720660879032,0.0736849,3098.4,3098.0,0.73982276]
[1720660879255,2.4417,3098.8,3098.1,2.38228171]
[1720660879433,2.4417,3098.8,3098.2,1.12367229]
[1720660879757,0.07374519,3098.7,3098.1,0.69677328]
[1720660879962,0.07374519,3098.7,3098.2,2.87366092]
[1720660880275,5.83959906,3099.2,3098.3,1.18819029]
[1720660880276,2.4417,3099.1,3098.3,1.18819029]
[1720660880522,3.405,3100.0,3098.3,1.18819029]
[1720660880523,2.4417,3099.7,3098.6,3.22725]
[1720660880645,0.07405532,3099.0,3098.9,3.22694]
[1720660880849,2.4417,3099.7,3099.1,3.22671]
[1720660881161,2.4417,3099.7,3099.2,3.35908349]
[1720660881362,2.4417,3099.7,3099.3,0.72614546]
[1720660882093,2.4417,3099.7,3098.9,3.90260109]
[1720660882249,2.4417,3099.7,3099.0,1.67331917]
[1720660882448,2.4417,3099.7,3099.0,0.55]
[1720660883294,2.4417,3099.7,3099.1,0.0645219]
[1720660883888,2.4417,3099.7,3099.0,0.55]
[1720660884047,2.4417,3099.7,3099.1,0.54619019]
[1720660884454,2.4417,3099.7,3098.9,3.0]
[1720660884651,0.33757745,3099.6,3098.9,3.0]
[1720660885504,2.3598,3099.5,3098.7,0.39025274]
[1720660885824,2.3598,3099.5,3098.4,5.12243]
[1720660885976,2.3598,3099.5,3098.5,6.71073647]
[1720660886175,2.3598,3099.5,3098.6,4.41523599]
[1720660886482,2.3598,3099.5,3098.6,3.29178917]
[1720660886683,2.3598,3099.5,3098.7,1.06492098]
[1720660886889,2.3598,3099.5,3098.7,2.18829233]
[1720660887060,2.3598,3099.5,3098.7,1.06492098]
[1720660887707,2.3598,3099.5,3098.6,3.0]
[1720660888317,2.3598,3099.5,3098.7,0.06453142]
[1720660888479,2.3598,3099.5,3098.6,3.0]
[1720660888879,2.3598,3099.5,3098.6,3.06453137]
[1720660889571,2.3598,3099.5,3098.6,3.06453138]
[1720660889780,2.3598,3099.5,3098.7,1.01643952]
[1720660889978,2.3598,3099.5,3098.7,0.95190814]
[1720660892603,2.3598,3099.5,3098.5,3.0]
[1720660892775,2.3598,3099.5,3098.4,4.895]
[1720660894491,2.3598,3099.5,3098.4,1.895]
[1720660894823,0.33757745,3099.6,3098.4,1.895]
[1720660894824,0.06948807,3099.4,3098.4,1.895]
[1720660895031,2.409,3099.3,3098.1,0.69677328]
[1720660895561,2.409,3099.3,3097.6,4.78568]
[1720660895713,6.405,3099.5,3097.6,4.78568]
[1720660895714,2.47841143,3099.2,3097.6,4.78568]
[1720660895911,2.47841143,3099.2,3097.6,1.5574]
[1720660896119,2.409,3099.1,3097.6,1.5574]
[1720660896323,2.461,3099.0,3097.6,1.5574]
[1720660896519,2.53020044,3099.0,3097.6,1.5574]
[1720660897346,2.4582,3098.8,3097.2,1.895]
[1720660897526,2.4582,3098.8,3097.2,2.44582861]
[1720660897828,2.4582,3098.6,3097.2,2.44582861]
[1720660898645,2.47446084,3098.5,3097.2,2.44582861]
[1720660898851,2.47446084,3098.5,3097.2,5.44582861]
[1720660899009,2.47446084,3098.5,3097.3,0.06455984]
[1720660899210,2.47446084,3098.5,3097.4,0.55103885]
[1720660899442,2.47446084,3098.5,3097.5,0.06455833]
[1720660899657,2.47446084,3098.5,3097.4,0.55103885]
[1720660899819,2.47446084,3098.5,3097.7,3.22819]
[1720660900140,0.33760964,3098.4,3097.7,3.22819]
[1720660900343,0.33760964,3098.4,3097.8,0.512319]
[1720660900570,0.33760964,3098.4,3097.6,4.895]
[1720660901226,0.33760964,3098.4,3097.6,1.895]
[1720660902934,0.06886468,3098.3,3097.6,1.895]
[1720660903340,0.33760964,3098.4,3097.6,1.895]
[1720660903779,2.4951,3098.2,3097.4,0.55103885]
[1720660903940,2.4951,3098.2,3097.3,3.0]
[1720660904141,2.4951,3098.2,3097.2,2.44582861]
[1720660904376,2.4951,3098.2,3097.2,1.895]
[1720660908259,0.06877447,3098.1,3097.2,1.895]
[1720660908779,2.4951,3098.2,3097.2,1.895]
[1720660909185,2.4732,3098.0,3097.2,1.895]
[1720660910850,2.4732,3098.0,3096.9,3.1137545]
[1720660911059,2.4732,3098.0,3097.0,0.51708304]
[1720660912196,2.4732,3098.0,3096.9,0.1137545]
[1720660912352,5.7087,3097.9,3096.9,0.1137545]
[1720660912556,2.3017,3097.8,3096.9,0.1137545]
[1720660912756,3.06832658,3097.8,3096.9,0.1137545]
[1720660912997,2.3017,3097.7,3096.9,0.1137545]
[1720660913354,2.337,3097.5,3096.9,0.1137545]
[1720660913789,0.06858221,3097.4,3096.9,0.1137545]
[1720660916019,0.06858221,3097.4,3097.0,0.06456948]
[1720660916498,0.3376305,3097.7,3097.0,0.06456948]
[1720660916654,0.3376305,3097.7,3097.0,0.06456922]
[1720660917467,0.3376305,3097.7,3096.9,0.93755295]
[1720660917676,0.3376305,3097.7,3096.9,0.1137545]
[1720660917986,2.39937141,3097.6,3096.9,0.1137545]
[1720660923677,2.3311,3097.6,3096.9,0.1137545]
[1720660924188,0.06812129,3097.5,3096.9,0.1137545]
[1720660924382,0.06812129,3097.5,3096.9,3.3427745]
[1720660924585,0.06812129,3097.5,3097.0,0.65719045]
[1720660924795,0.06812129,3097.5,3096.9,0.1137545]
[1720660925011,2.3311,3097.6,3096.9,0.1137545]
[1720660945444,6.17723815,3098.4,3097.0,1.1240662]
[1720660945751,1.18461128,3098.3,3097.6,7.44298]
[1720660945931,0.06601709,3098.3,3097.7,4.10377098]
[1720660946121,0.06601709,3098.3,3097.8,4.35185919]
[1720660946446,2.4517,3098.8,3097.9,1.18826617]
[1720660946652,0.06168588,3098.7,3097.9,3.06454668]
[1720660946804,0.06168588,3098.7,3098.0,0.6968956]
[1720660947130,0.06168588,3098.7,3097.7,3.80884938]
[1720660947338,0.06168588,3098.7,3097.8,1.18835041]
[1720660947554,0.06168588,3098.7,3097.9,1.12379902]
[1720660947732,0.06168588,3098.7,3097.8,3.0]
[1720660948041,0.06168588,3098.7,3097.7,1.42141125]
[1720660948042,0.06168588,3098.7,3097.9,2.80942182]
[1720660948349,0.06168588,3098.7,3098.0,0.28094218]
[1720660948511,0.06168588,3098.7,3097.7,3.744298]
[1720660948705,0.06168588,3098.7,3097.8,2.80944882]
[1720660948907,0.06168588,3098.7,3097.9,3.0]
[1720660949109,0.06168588,3098.7,3097.7,3.744298]
[1720660949304,2.2765,3098.6,3097.8,1.12378638]
[1720660949547,2.2765,3098.6,3097.4,0.67711325]
[1720660949708,0.06160362,3098.5,3097.5,2.8096478]
[1720660949908,0.06160362,3098.5,3097.4,0.90648473]
[1720660950137,0.06160362,3098.5,3097.5,2.80970371]
[1720660950445,0.06160362,3098.5,3097.4,0.90648473]
[1720660950608,0.06160362,3098.5,3097.5,2.80969276]
[1720660950808,0.06160362,3098.5,3097.5,0.76219007]
[1720660951252,0.06160362,3098.5,3097.6,1.12383996]
[1720660951552,0.06160362,3098.5,3097.5,0.76219007]
[1720660951708,0.06160362,3098.5,3097.6,2.80954175]
[1720660951909,0.06160362,3098.5,3097.7,1.1238167]
[1720660952109,0.06160362,3098.5,3097.6,3.22829]
[1720660952311,0.06160362,3098.5,3097.7,1.59054777]
[1720660952543,0.06160362,3098.5,3097.7,3.69494933]
[1720660952950,0.06160362,3098.5,3097.7,0.46675933]
[1720660953145,0.06160362,3098.5,3097.6,1.895]
[1720660959836,0.06160362,3098.5,3097.7,3.22816]
[1720660960236,0.06160362,3098.5,3097.8,3.22809]
[1720660960423,0.06160362,3098.5,3098.0,5.12286]
[1720660960617,2.3515,3098.9,3098.1,3.22776]
[1720660960860,0.05974518,3098.8,3098.2,0.84151644]
[1720660961057,2.3515,3098.9,3098.2,0.84151644]
[1720660961245,0.05974518,3098.8,3098.2,0.84151644]
[1720660961448,2.3515,3098.9,3098.0,1.895]
[1720660961653,0.05974518,3098.8,3098.0,1.895]
[1720660961857,2.3515,3098.9,3098.0,1.895]
[1720660962041,0.05975236,3098.8,3098.0,1.895]
[1720660962360,2.3515,3098.9,3098.0,1.895]
[1720660962540,2.3515,3098.9,3098.1,0.567291]
[1720660962869,2.3437,3098.7,3097.7,1.68559212]
[1720660963030,2.3437,3098.7,3097.5,5.67617219]
[1720660963224,2.3437,3098.7,3097.5,3.99058007]
[1720660963454,2.3437,3098.7,3097.5,0.76219007]
[1720660963627,0.05985593,3098.6,3097.5,3.99059007]
[1720660963842,0.05985593,3098.6,3097.6,0.81254848]
[1720660964057,2.4888,3098.5,3097.6,0.81254848]
[1720660964370,0.05972243,3098.4,3097.6,0.81254848]
[1720660964861,2.4888,3098.5,3097.6,0.81254848]
[1720660965063,0.05969056,3098.4,3097.6,0.81254848]
[1720660965273,2.4888,3098.5,3097.7,0.76216828]
[1720660966562,2.4888,3098.5,3097.8,0.0645559]
[1720660967855,2.3663,3099.0,3097.8,2.3921559]
[1720660968154,0.06010621,3098.9,3098.0,3.22788]
[1720660968341,0.06010621,3098.9,3098.1,0.377788]
[1720660969270,2.3663,3099.0,3098.1,0.377788]
[1720660969439,0.06016086,3098.9,3098.1,0.377788]
[1720660969631,2.3663,3099.0,3098.1,0.377788]
[1720660969827,0.06016086,3098.9,3098.1,0.377788]
[1720660970050,2.3663,3099.0,3098.1,0.377788]
[1720660970257,0.06011777,3098.9,3098.1,0.377788]
[1720660970431,2.3663,3099.0,3098.1,0.377788]
[1720660970631,0.06011777,3098.9,3098.1,0.377788]
[1720660970844,2.3663,3099.0,3098.1,0.377788]
[1720660971080,0.06011777,3098.9,3098.1,0.377788]
[1720660971370,2.3663,3099.0,3098.1,0.377788]
[1720660971875,2.4816,3098.8,3098.1,0.377788]
[1720660972450,2.53217143,3098.7,3097.7,3.76216828]
[1720660972773,2.53217143,3098.7,3097.7,3.0]
[1720660972774,2.4721,3098.7,3097.7,3.0]
[1720660973382,2.4721,3098.7,3097.5,4.895]
[1720660973873,2.4721,3098.7,3097.5,8.12333]
[1720660974080,2.4721,3098.7,3097.6,3.22824]
[1720660974234,2.4721,3098.7,3097.7,3.0]
[1720660974438,2.4721,3098.7,3097.8,0.62927927]
[1720660974787,0.06002129,3098.6,3097.8,0.62927927]
[1720660975275,2.4721,3098.7,3097.8,0.62927927]
[1720660975470,0.06002129,3098.6,3097.8,0.62927927]
[1720660975888,2.4721,3098.7,3097.8,0.62927927]
[1720660976050,2.4721,3098.7,3097.9,0.68574693]
[1720660976454,0.0600222,3098.6,3097.9,0.68574693]
[1720660976665,2.4721,3098.7,3097.9,0.68574693]
[1720660976956,0.06005812,3098.6,3097.9,0.68574693]
[1720660977161,2.4721,3098.7,3097.9,0.68574693]
[1720660977377,0.06003494,3098.5,3097.9,2.58074693]
[1720660977575,2.4721,3098.7,3098.0,0.32100262]
[1720660977887,0.06004567,3098.6,3098.0,0.32100262]
[1720660978187,2.4721,3098.7,3098.0,0.32100262]
[1720660978387,0.06001004,3098.5,3098.0,0.32100262]
[1720660978570,0.06003322,3098.6,3098.0,0.32100262]
[1720660978775,2.4721,3098.7,3098.0,0.32100262]
[1720660979293,0.06004567,3098.6,3098.0,0.32100262]
[1720660979662,2.4721,3098.7,3098.0,0.32100262]
[1720660979872,2.4721,3098.7,3098.1,0.29017496]
[1720660980183,0.0600404,3098.6,3098.1,0.29017496]
[1720660980493,2.4721,3098.7,3097.9,2.58074693]
[1720660981002,0.06005285,3098.6,3097.9,2.58074693]
[1720660981151,2.4976,3098.5,3097.9,0.68574693]
[1720660981350,2.4976,3098.5,3097.8,0.62927927]
[1720660981586,2.4976,3098.5,3097.6,6.22826]
[1720660981795,2.4976,3098.5,3097.6,6.22823]
[1720660982088,2.4976,3098.5,3097.7,3.22816]
[1720660982986,2.4976,3098.5,3097.6,7.91394725]
[1720660983207,2.4976,3098.5,3097.6,3.0]
[1720660983374,2.4976,3098.5,3097.5,5.12339]
[1720660983685,2.4976,3098.5,3097.6,0.512339]
[1720660983903,0.06006706,3098.4,3097.6,0.512339]
[1720660984194,2.4976,3098.5,3097.6,0.512339]
[1720660984378,0.06003477,3098.3,3097.6,0.512339]
[1720660984549,2.4976,3098.5,3097.6,0.512339]
[1720660984748,2.4976,3098.5,3098.2,0.79]
[1720660987495,2.4976,3098.5,3098.1,0.79]
[1720660987798,1.11843465,3098.4,3098.1,0.79]
[1720660988000,1.11843465,3098.3,3098.1,0.79]
[1720660988293,2.4976,3098.5,3098.1,0.79]
[1720660988468,1.11847976,3098.4,3098.1,0.79]
[1720660988671,2.4976,3098.5,3098.1,0.79]
[1720660988869,1.11846037,3098.4,3098.1,0.79]
[1720660989210,2.4976,3098.5,3098.1,0.79]
[1720660989362,1.118447,3098.4,3098.1,0.79]
[1720660989562,2.4976,3098.5,3098.1,0.79]
[1720660989781,1.11844632,3098.4,3098.1,0.79]
[1720660989980,2.4976,3098.5,3098.1,0.79]
[1720660990289,1.11844777,3098.4,3098.1,0.79]
[1720660990465,2.4976,3098.5,3098.1,0.79]
[1720660990666,1.11844382,3098.4,3098.1,0.79]
[1720660990905,2.4976,3098.5,3098.1,0.79]
[1720660991142,1.11844784,3098.4,3098.1,0.79]
[1720660991325,2.4976,3098.5,3098.1,0.79]
[1720660991494,1.11844875,3098.4,3098.1,0.79]
[1720660991813,2.4976,3098.5,3098.1,0.79]
[1720660992014,1.11846617,3098.4,3098.1,0.79]
[1720660992209,2.4976,3098.5,3098.1,0.79]
[1720660992411,1.11846594,3098.4,3098.1,0.79]
[1720660992721,2.4976,3098.5,3098.1,0.79]
[1720660992928,1.11846134,3098.4,3098.1,0.79]
[1720660993104,1.11846435,3098.4,3098.1,0.79]
[1720660993299,2.4976,3098.5,3098.1,0.79]
[1720660993505,1.11846431,3098.4,3098.1,0.79]
[1720660993706,2.4976,3098.5,3098.1,0.79]
[1720660993922,1.11846431,3098.4,3098.1,0.79]
[1720660994136,2.4976,3098.5,3098.1,0.79]
[1720660994290,2.4976,3098.5,3097.6,1.68586236]
[1720660994632,1.11844998,3098.4,3098.0,0.79]
[1720660994840,2.4976,3098.5,3098.0,0.79]
[1720660994999,1.1184502,3098.4,3098.0,0.79]
[1720660995195,2.4976,3098.5,3098.2,0.79]
[1720660997029,2.4976,3098.5,3097.8,0.67668512]
[1720660997212,0.05928939,3098.4,3098.2,0.79]
[1720660998912,0.05928939,3098.4,3097.8,0.48054703]
[1720660999105,0.05928939,3098.4,3098.1,0.79]
[1720661000855,0.05928939,3098.4,3097.9,0.79]
[1720661001019,1.11846988,3098.3,3097.9,0.79]
[1720661001218,1.11846988,3098.2,3097.9,0.79]
[1720661001414,1.17780714,3098.2,3097.9,0.79]
[1720661001619,0.05933726,3098.2,3097.9,0.79]
[1720661001818,4.19384624,3098.5,3097.9,0.79]
[1720661002059,0.05893735,3098.1,3097.9,0.79]
[1720661002262,4.19384624,3098.5,3097.9,0.79]
[1720661002569,1.11851694,3098.4,3097.9,0.79]
[1720661002767,1.17786411,3098.4,3097.9,0.79]
[1720661002920,1.11851694,3098.3,3097.9,0.79]
[1720661003120,0.05895383,3098.2,3097.9,0.79]
[1720661003325,2.4976,3098.5,3097.9,0.79]
[1720661003550,0.05927764,3098.1,3097.9,0.79]
[1720661003857,2.4976,3098.5,3097.9,0.79]
[1720661004048,1.6958908,3098.6,3097.4,1.68595514]
[1720661004049,2.53875446,3098.0,3097.4,1.68595514]
[1720661004259,2.4795,3098.0,3097.4,0.79]
[1720661004635,0.05926865,3097.9,3097.4,0.79]
[1720661004835,1.51550684,3097.9,3097.4,0.79]
[1720661005036,0.39683986,3097.9,3097.4,0.79]
[1720661005660,0.39683986,3097.9,3097.0,1.68619732]
[1720661005880,0.39683986,3097.9,3097.5,0.79]
[1720661010072,0.39683986,3097.9,3097.3,0.79]
[1720661013001,0.39683986,3097.9,3097.5,0.79]
[1720661018501,0.39683986,3097.9,3097.7,0.79]
[1720661018653,0.39683986,3097.9,3097.8,3.24005257]
[1720661018849,2.2904,3098.9,3097.8,8.72415002]
[1720661019083,2.2904,3098.9,3098.5,0.79]
[1720661020418,2.2904,3098.9,3097.8,0.64682526]
[1720661020579,2.2904,3098.9,3098.2,0.79]
[1720661020972,2.2904,3098.9,3097.7,2.3899]
[1720661020973,2.2904,3098.9,3098.4,0.79]
[1720661023093,2.2904,3098.9,3098.2,0.79]
[1720661024711,2.2904,3098.9,3098.4,0.79]
[1720661026877,0.05329746,3098.8,3098.4,0.79]
[1720661033929,0.05329746,3098.8,3098.2,0.79]
[1720661036400,0.33790852,3098.7,3098.2,0.79]
[1720661036602,0.39137184,3098.7,3098.2,0.79]
[1720661040305,0.39137184,3098.7,3098.4,0.79]
[1720661041741,0.39137184,3098.7,3098.4,0.30819]
[1720661041914,0.39137184,3098.7,3098.2,0.79]
[1720661043251,0.05346332,3098.7,3098.4,0.79]
[1720661043463,2.3888,3099.1,3098.4,0.79]
[1720661043741,0.05320352,3098.6,3098.4,0.79]
[1720661043940,2.72673712,3099.1,3098.4,0.79]
[1720661044144,0.05321938,3098.5,3098.4,0.79]
[1720661044346,2.72673712,3099.1,3098.4,0.79]
[1720661044547,0.05325901,3098.5,3098.4,0.79]
[1720661044776,2.72673712,3099.1,3098.4,0.79]
[1720661044957,0.05323411,3098.5,3098.3,3.22757]
[1720661045239,8.13409906,3099.4,3098.4,1.112757]
[1720661045405,8.13409906,3099.4,3098.9,0.79]
[1720661045605,2.2945,3099.4,3098.9,0.79]
[1720661046217,2.81293018,3099.7,3099.1,0.79]
[1720661046440,5.83959906,3100.1,3098.6,3.22725]
[1720661046441,8.28529906,3100.1,3099.4,0.79]
[1720661046646,2.4457,3100.4,3099.8,0.79]
[1720661046828,1.11777881,3100.3,3099.8,0.79]
[1720661047048,2.4457,3100.4,3099.8,0.79]
[1720661047417,0.33790909,3100.7,3099.7,2.3503]
[1720661047621,0.33790909,3100.7,3100.3,0.79]
[1720661048730,2.3444,3100.9,3099.9,0.06451411]
[1720661049334,2.3444,3100.9,3099.8,0.557651]
[1720661049562,2.3444,3100.9,3099.7,2.3503]
[1720661049855,2.3444,3100.9,3099.8,0.06451111]
[1720661050159,2.65000281,3101.4,3099.9,3.22589]
[1720661050512,2.65000281,3101.4,3099.9,3.29039256]
[1720661050836,2.65000281,3101.4,3100.0,0.32903926]
[1720661051550,3.05070917,3101.3,3100.0,0.32903926]
[1720661052553,3.05070917,3101.3,3100.0,0.39354183]
[1720661052965,3.05070917,3101.3,3100.0,0.32903926]
[1720661054243,3.05070917,3101.3,3100.0,0.39354183]
[1720661054414,3.05070917,3101.3,3100.1,0.36194318]
[1720661054620,3.05070917,3101.3,3099.7,7.59432]
[1720661054828,3.05070917,3101.3,3099.8,0.55]
[1720661055245,3.05070917,3101.3,3099.8,3.776]
[1720661055571,3.05070917,3101.3,3099.8,3.8405026]
[1720661055712,0.05070917,3101.3,3099.8,3.8405026]
[1720661055913,0.05070917,3101.3,3099.9,1.14348226]
[1720661056251,0.05070917,3101.3,3100.0,0.06450261]
[1720661056450,0.05070917,3101.3,3099.9,1.14348226]
[1720661061162,0.05070917,3101.3,3100.2,2.018]
[1720661061370,0.05070917,3101.3,3099.9,4.14348226]
[1720661061371,0.05070917,3101.3,3100.6,2.018]
[1720661061553,2.3054,3102.4,3100.8,3.22496]
[1720661061753,2.3054,3102.4,3101.0,2.018]
[1720661061951,2.3054,3102.4,3101.1,0.06448258]
[1720661062264,2.3054,3103.0,3101.4,2.018]
[1720661062465,0.04964796,3102.9,3101.5,0.06447788]
[1720661062668,0.04964796,3102.9,3101.4,2.51868799]
[1720661063066,3.45664796,3102.9,3101.4,2.51868799]
[1720661064915,3.0,3102.8,3101.4,2.51868799]
[1720661065391,0.04978112,3102.7,3101.4,2.51868799]
[1720661065585,0.04978112,3102.7,3101.5,0.2518688]
[1720661069475,0.04978112,3102.7,3101.4,0.43621]